bitfinex/quotes_SOLUSD_20220105
["timestamp","ask_amount","ask_price","bid_price","bid_amount"]
[1641388355788,27.4,168.12,168.06,0.06]
[1641388355987,107.45154895,168.15,168.06,0.06]
[1641388356786,24.4663,168.14,168.06,0.06]
[1641388356987,49.58744344,168.14,168.06,0.06]
[1641388357187,49.48744344,168.14,168.06,0.06]
[1641388358988,49.48744344,168.14,168.07,8.56]
[1641388359387,49.48744344,168.14,168.07,9.32]
[1641388360892,49.48744344,168.14,168.08,0.06]
[1641388362393,107.45154895,168.15,168.08,0.06]
[1641388365797,105.1257,168.15,168.08,0.06]
[1641388366000,105.1257,168.15,168.08,8.9769]
[1641388366399,105.1257,168.15,168.08,9.7369]
[1641388367201,105.1257,168.15,168.09,8.56]
[1641388367503,105.1257,168.15,168.1,0.06]
[1641388371915,27.4,168.15,168.1,0.06]
[1641388373115,72.64997775,168.19,168.1,0.06]
[1641388374422,49.9765,168.19,168.1,0.06]
[1641388374821,49.9765,168.19,168.11,8.56]
[1641388375022,49.9765,168.19,168.12,0.06]
[1641388375222,49.9765,168.19,168.12,8.62]
[1641388375422,49.9765,168.19,168.12,34.13906018]
[1641388375626,49.9765,168.19,168.12,34.39906018]
[1641388375823,49.9765,168.19,168.12,9.32]
[1641388376023,49.9765,168.19,168.12,9.38]
[1641388376224,49.9765,168.19,168.12,9.32]
[1641388377325,49.9765,168.19,168.13,0.06]
[1641388378328,63.0,168.18,168.12,9.26900457]
[1641388378729,90.4,168.18,168.12,9.26900457]
[1641388379155,119.15924328,168.18,168.12,9.26900457]
[1641388380353,119.15924328,168.18,168.12,9.00900457]
[1641388381955,119.15924328,168.18,168.12,9.26900457]
[1641388388859,119.15924328,168.18,168.12,9.00900457]
[1641388389662,119.15924328,168.18,168.12,0.5]
[1641388389964,23.4954,168.17,168.09,18.0141]
[1641388390162,23.4954,168.17,168.09,9.06]
[1641388391061,50.8954,168.17,168.09,9.06]
[1641388391261,50.8954,168.17,168.09,0.5]
[1641388391462,125.4096,168.17,168.06,9.06]
[1641388391866,125.4096,168.17,168.06,9.32]
[1641388393867,125.4096,168.17,168.06,9.06]
[1641388396870,125.4096,168.17,168.06,9.32]
[1641388399106,125.4096,168.17,168.06,10.79846154]
[1641388399505,125.4096,168.17,168.06,9.32]
[1641388402910,125.4096,168.17,168.06,10.79846154]
[1641388404215,125.4096,168.17,168.06,9.32]
[1641388405911,125.4096,168.17,168.06,10.79846154]
[1641388406111,125.4096,168.17,168.07,27.07468049]
[1641388406312,125.4096,168.17,168.08,8.56]
[1641388406513,125.4096,168.17,168.08,10.29846154]
[1641388406715,125.4096,168.17,168.08,10.79846154]
[1641388406915,125.4096,168.17,168.09,1.47846154]
[1641388407115,125.4096,168.17,168.1,8.56]
[1641388407317,125.4096,168.17,168.1,17.4759]
[1641388407516,125.4096,168.17,168.11,1.47846154]
[1641388407716,125.4096,168.17,168.12,8.56]
[1641388407916,125.4096,168.17,168.12,9.06]
[1641388408215,125.4096,168.17,168.13,28.33837169]
[1641388408415,125.4096,168.17,168.13,28.83837169]
[1641388408615,125.4096,168.17,168.13,29.09837169]
[1641388410916,101.9142,168.17,168.13,29.09837169]
[1641388411118,27.4,168.17,168.13,29.09837169]
[1641388412920,27.4,168.17,168.13,37.65837169]
[1641388413418,120.1,168.18,168.13,37.65837169]
[1641388413820,120.1,168.18,168.13,46.57287169]
[1641388414019,120.1,168.18,168.13,37.65837169]
[1641388414421,120.1,168.18,168.13,42.84837169]
[1641388414821,120.1,168.18,168.15,8.9134]
[1641388415024,120.1,168.18,168.15,8.82]
[1641388415224,120.1,168.18,168.16,1.47846154]
[1641388415426,120.1,168.18,168.17,8.56]
[1641388415826,120.1,168.18,168.17,10.79846154]
[1641388416824,120.1,168.18,168.17,16.19146154]
[1641388417025,120.1,168.18,168.17,46.50795868]
[1641388417423,120.1,168.18,168.17,45.02949714]
[1641388417924,120.1,168.18,168.17,46.50795868]
[1641388418124,120.1,168.18,168.17,45.02949714]
[1641388418324,119.5203,168.18,168.17,45.02949714]
[1641388418724,119.5203,168.18,168.17,53.94179714]
[1641388418926,119.5203,168.18,168.17,55.42025868]
[1641388419527,27.4,168.18,168.17,55.42025868]
[1641388420930,22.3441,168.18,168.17,55.42025868]
[1641388421729,22.4,168.18,168.17,55.42025868]
[1641388421930,22.4,168.18,168.17,16.19146154]
[1641388422134,22.4,168.18,168.17,10.79846154]
[1641388422531,22.4,168.18,168.17,10.53846154]
[1641388424055,22.4,168.18,168.17,10.79846154]
[1641388424253,22.4,168.18,168.17,9.32]
[1641388427262,22.4,168.18,168.17,10.79846154]
[1641388428063,22.4,168.18,168.17,9.32]
[1641388428464,22.4,168.18,168.17,10.79846154]
[1641388428866,22.4,168.18,168.17,9.32]
[1641388429067,22.4,168.18,168.17,10.79846154]
[1641388429366,22.4,168.18,168.17,9.32]
[1641388433569,28.46439994,168.18,168.17,9.32]
[1641388433769,22.4,168.18,168.17,10.79846154]
[1641388434172,22.4,168.18,168.17,9.32]
[1641388435670,28.46439994,168.18,168.17,9.32]
[1641388437175,28.46439994,168.18,168.17,10.79846154]
[1641388437374,22.4,168.18,168.17,10.79846154]
[1641388438581,115.1,168.21,168.17,10.79846154]
[1641388438780,115.1,168.21,168.17,19.71066154]
[1641388439883,115.1,168.21,168.17,9.06]
[1641388440285,115.1,168.21,168.17,0.5]
[1641388440486,115.1,168.21,168.14,9.06]
[1641388440683,115.1,168.21,168.14,0.5]
[1641388440885,24.3797,168.2,168.11,15.26269152]
[1641388441385,46.7797,168.2,168.11,15.26269152]
[1641388443710,46.7797,168.2,168.11,16.74115306]
[1641388444011,46.7797,168.2,168.11,17.00115306]
[1641388447716,46.7797,168.2,168.11,15.52269152]
[1641388450321,46.7797,168.2,168.11,17.00115306]
[1641388454623,46.8397,168.2,168.11,6.20269152]
[1641388454821,46.8397,168.2,168.08,1.47846154]
[1641388455021,121.6681,168.2,168.09,0.5]
[1641388455223,121.6681,168.2,168.05,8.56]
[1641388455420,122.1681,168.2,168.05,9.06]
[1641388455622,122.4281,168.2,168.05,9.06]
[1641388456022,8.56,168.19,168.05,0.5]
[1641388456521,9.32,168.19,168.04,3.59554745]
[1641388457323,9.32,168.19,168.04,5.33400899]
[1641388457524,47.4501,168.18,168.04,5.33400899]
[1641388457726,25.67684771,168.17,168.04,3.85554745]
[1641388458622,25.67684771,168.17,168.04,5.33400899]
[1641388459223,25.67684771,168.17,168.04,3.85554745]
[1641388459423,25.67684771,168.17,168.04,27.44099428]
[1641388459624,25.67684771,168.17,168.04,28.91945582]
[1641388461026,25.67684771,168.17,168.04,37.47945582]
[1641388461229,25.67684771,168.17,168.04,43.44426722]
[1641388461732,25.67684771,168.17,168.06,8.9174]
[1641388461924,25.67684771,168.17,168.07,8.56]
[1641388461925,48.07684771,168.17,168.07,8.56]
[1641388462126,48.07684771,168.17,168.07,10.03846154]
[1641388462327,3.03894285,168.16,168.07,10.79846154]
[1641388462628,3.03894285,168.16,168.08,1.47846154]
[1641388462826,48.07684771,168.17,168.09,8.56]
[1641388463027,48.07684771,168.17,168.09,8.82]
[1641388463229,22.4,168.17,168.1,1.47846154]
[1641388463429,22.4,168.17,168.1,10.53846154]
[1641388463630,22.4,168.17,168.1,10.79846154]
[1641388463828,69.8501,168.18,168.1,10.79846154]
[1641388464234,100.88241399,168.18,168.1,10.79846154]
[1641388469242,100.88241399,168.18,168.1,9.32]
[1641388470844,100.88241399,168.18,168.1,9.06]
[1641388472045,100.88241399,168.18,168.1,9.32]
[1641388475249,100.88241399,168.18,168.1,8.82]
[1641388476373,100.88241399,168.18,168.1,9.32]
[1641388480080,100.88241399,168.18,168.1,9.06]
[1641388481282,100.88241399,168.18,168.1,9.32]
[1641388490495,69.8501,168.18,168.1,9.32]
[1641388491497,69.8501,168.18,168.11,26.88695452]
[1641388491700,69.8501,168.18,168.12,8.56]
[1641388491895,69.8501,168.18,168.12,9.06]
[1641388492097,69.8501,168.18,168.12,9.32]
[1641388493099,46.341,168.18,168.12,9.32]
[1641388493301,22.4,168.18,168.12,9.32]
[1641388494105,22.4,168.18,168.12,9.06]
[1641388494807,24.78127405,168.19,168.12,9.06]
[1641388495426,24.78127405,168.19,168.12,9.32]
[1641388495827,24.78127405,168.19,168.12,9.06]
[1641388497229,24.78127405,168.19,168.12,9.32]
[1641388501534,24.78127405,168.19,168.12,8.82]
[1641388501732,24.78127405,168.19,168.08,8.56]
[1641388502031,23.5897,168.18,168.08,8.56]
[1641388502651,23.6497,168.18,168.08,8.56]
[1641388502838,23.6497,168.18,168.08,9.06]
[1641388503334,46.0497,168.18,168.08,9.06]
[1641388503536,46.0497,168.18,168.08,0.5]
[1641388503935,46.5497,168.18,168.05,0.5]
[1641388504138,55.1097,168.18,168.05,0.5]
[1641388504336,24.4109,168.17,168.02,9.06]
[1641388504538,22.66467289,168.16,168.02,9.06]
[1641388504738,23.0261,168.15,168.02,9.06]
[1641388504937,45.4261,168.15,168.02,9.06]
[1641388505339,2.59698311,168.13,168.02,9.06]
[1641388505939,2.59698311,168.13,168.02,9.32]
[1641388506140,24.99698311,168.13,168.02,9.32]
[1641388506541,24.99698311,168.13,168.02,10.79846154]
[1641388506740,24.8252,168.12,168.02,10.79846154]
[1641388506940,47.2252,168.12,168.02,10.79846154]
[1641388510045,47.2252,168.12,168.02,10.53846154]
[1641388510244,47.2252,168.12,168.02,9.06]
[1641388512042,47.2252,168.12,168.02,10.53846154]
[1641388512645,47.2252,168.12,168.02,10.79846154]
[1641388515248,47.2252,168.12,168.02,9.32]
[1641388516350,47.2252,168.12,168.02,10.79846154]
[1641388516549,47.2252,168.12,168.02,9.32]
[1641388517353,47.2252,168.12,168.02,10.79846154]
[1641388518453,22.4,168.12,168.02,24.77268901]
[1641388519052,115.1,168.13,168.02,24.77268901]
[1641388519455,115.1,168.13,168.03,0.30102209]
[1641388519655,115.1,168.13,168.06,8.9179]
[1641388519953,115.1,168.13,168.07,8.56]
[1641388520355,115.1,168.13,168.07,10.79846154]
[1641388520554,115.1,168.13,168.08,1.47846154]
[1641388520756,115.1,168.13,168.09,8.56]
[1641388520955,115.1,168.13,168.09,9.32]
[1641388522056,115.1,168.13,168.09,10.79846154]
[1641388527158,22.4,168.13,168.09,10.79846154]
[1641388528560,22.4,168.13,168.09,10.53846154]
[1641388528959,22.4,168.13,168.09,9.06]
[1641388529759,24.68045802,168.16,168.09,9.06]
[1641388530861,24.68045802,168.16,168.09,9.32]
[1641388534261,24.68045802,168.16,168.09,9.06]
[1641388535863,82.0,168.15,156.04,1.0]
[1641388536064,2.94495941,168.09,168.0,8.56]
[1641388536269,25.34495941,168.09,168.07,1.47846154]
[1641388536489,24.22128405,168.08,168.02,8.56]
[1641388537294,24.22128405,168.08,168.0,67.07846154]
[1641388537492,23.7773,168.07,168.02,0.5]
[1641388537691,23.7773,168.07,168.0,1.97846154]
[1641388538495,23.7773,168.07,168.0,2.23846154]
[1641388538697,23.7773,168.07,168.0,1.97846154]
[1641388538896,23.7773,168.07,168.0,0.5]
[1641388539094,73.6773,168.06,168.0,0.5]
[1641388539295,73.6773,168.06,167.97,0.5]
[1641388539496,23.4535,168.05,167.94,10.53846154]
[1641388540497,23.4535,168.05,167.94,10.79846154]
[1641388540698,73.6773,168.06,167.94,42.62674172]
[1641388540896,73.6773,168.06,167.95,3.0973189]
[1641388541295,73.6773,168.06,167.96,1.47846154]
[1641388541498,73.6773,168.06,167.96,1.73846154]
[1641388541695,22.4,168.05,167.96,2.23846154]
[1641388541897,22.4,168.05,167.97,1.47846154]
[1641388542097,96.0773,168.06,167.97,1.47846154]
[1641388542299,96.0773,168.06,167.97,2.23846154]
[1641388542700,96.0773,168.06,167.98,1.47846154]
[1641388542900,96.0773,168.06,167.98,1.97846154]
[1641388543099,96.0773,168.06,167.98,2.23846154]
[1641388543300,96.0773,168.06,167.99,1.47846154]
[1641388543499,96.0773,168.06,167.99,1.73846154]
[1641388543699,96.0773,168.06,167.99,2.23846154]
[1641388544102,23.7483,168.05,167.99,0.76]
[1641388544499,46.1483,168.05,167.97,2.23846154]
[1641388544801,46.1483,168.05,167.97,1.73846154]
[1641388544998,46.1483,168.05,167.98,1.47846154]
[1641388545400,46.1483,168.05,167.98,1.97846154]
[1641388545801,46.1483,168.05,167.99,1.47846154]
[1641388546000,22.4,168.05,167.99,1.47846154]
[1641388546202,22.4,168.05,167.99,2.23846154]
[1641388546603,96.0773,168.06,168.0,1.47846154]
[1641388547000,96.0773,168.06,168.0,2.23846154]
[1641388547402,22.4,168.06,168.01,1.47846154]
[1641388547802,22.4,168.06,168.01,2.23846154]
[1641388550403,46.62128405,168.08,168.01,2.23846154]
[1641388550805,46.62128405,168.08,168.02,1.47846154]
[1641388551004,22.4,168.08,168.02,1.73846154]
[1641388551204,22.4,168.08,168.02,2.23846154]
[1641388551408,22.4,168.08,168.03,1.47846154]
[1641388551605,136.59645515,168.1,168.03,1.47846154]
[1641388551807,136.59645515,168.1,168.03,2.23846154]
[1641388552005,136.59645515,168.1,168.03,31.75285369]
[1641388552207,136.59645515,168.1,168.04,1.47846154]
[1641388552405,136.59645515,168.1,168.06,8.9179]
[1641388552605,136.59645515,168.1,168.06,9.1779]
[1641388552806,136.59645515,168.1,168.06,9.6779]
[1641388554311,136.59645515,168.1,168.06,0.76]
[1641388554509,136.59645515,168.1,168.06,0.5]
[1641388554709,136.59645515,168.1,168.05,9.6785]
[1641388555412,136.59645515,168.1,168.05,11.15696154]
[1641388556816,136.59645515,168.1,168.05,2.23846154]
[1641388557015,136.59645515,168.1,168.06,8.918]
[1641388557416,136.59645515,168.1,168.07,1.47846154]
[1641388557816,136.59645515,168.1,168.07,2.23846154]
[1641388561720,136.59645515,168.1,168.07,1.97846154]
[1641388563145,136.59645515,168.1,168.07,2.23846154]
[1641388565547,136.59645515,168.1,168.08,1.47846154]
[1641388565946,136.59645515,168.1,168.08,2.23846154]
[1641388566349,127.68085515,168.1,168.09,36.47846154]
[1641388566648,127.68085515,168.1,168.09,45.29846154]
[1641388566649,90.69543857,168.1,168.09,45.29846154]
[1641388566949,82.93983857,168.1,168.09,51.15646154]
[1641388567151,92.7,168.19,168.1,78.290132]
[1641388567348,92.7,168.19,168.11,8.56]
[1641388567548,92.7,168.19,168.11,10.29846154]
[1641388567750,92.7,168.19,168.17,31.80117418]
[1641388568047,92.7,168.19,168.17,32.56117418]
[1641388568248,88.5178,168.19,168.17,32.56117418]
[1641388568449,88.5178,168.19,168.18,1.47846154]
[1641388568751,92.7,168.19,168.18,1.47846154]
[1641388568949,92.7,168.19,168.18,2.23846154]
[1641388571153,90.69543857,168.19,168.18,33.23846154]
[1641388571351,90.69543857,168.19,168.18,41.79846154]
[1641388571352,65.48503857,168.19,168.18,41.79846154]
[1641388571552,115.3785,168.27,168.18,41.79846154]
[1641388572053,22.6785,168.27,168.19,1.47846154]
[1641388572452,22.6785,168.27,168.19,2.23846154]
[1641388572852,22.6785,168.27,168.2,1.47846154]
[1641388573054,115.3785,168.27,168.2,1.73846154]
[1641388573253,115.3785,168.27,168.2,0.76]
[1641388573653,115.3785,168.27,168.2,0.5]
[1641388573858,24.7733,168.26,168.16,0.5]
[1641388574057,2.86902519,168.25,168.16,0.5]
[1641388574254,2.86902519,168.25,168.14,10.53846154]
[1641388574656,24.1832,168.24,168.14,10.53846154]
[1641388574858,25.33532122,168.23,168.14,10.53846154]
[1641388575157,25.33532122,168.23,168.14,19.55936154]
[1641388575357,25.33532122,168.23,168.15,1.47846154]
[1641388575959,24.1832,168.24,168.15,1.97846154]
[1641388576157,24.1832,168.24,168.15,2.23846154]
[1641388576357,24.1832,168.24,168.16,8.56]
[1641388576557,24.1832,168.24,168.16,10.03846154]
[1641388576758,24.1832,168.24,168.16,10.79846154]
[1641388576958,48.3433928,168.24,168.17,1.47846154]
[1641388577460,48.3433928,168.24,168.17,1.97846154]
[1641388577661,48.3433928,168.24,168.17,2.23846154]
[1641388577864,48.3433928,168.24,168.18,1.47846154]
[1641388578065,48.3433928,168.24,168.18,10.29846154]
[1641388578264,48.3433928,168.24,168.18,10.79846154]
[1641388579368,48.3433928,168.24,168.18,9.32]
[1641388579566,48.3433928,168.24,168.18,0.76]
[1641388579968,48.3433928,168.24,168.15,2.23846154]
[1641388580167,48.3433928,168.24,168.15,1.73846154]
[1641388580366,48.3433928,168.24,168.16,1.47846154]
[1641388580567,48.3433928,168.24,168.16,10.29846154]
[1641388580767,48.3433928,168.24,168.16,10.79846154]
[1641388580970,48.3433928,168.24,168.17,1.47846154]
[1641388581369,48.3433928,168.24,168.17,2.23846154]
[1641388581769,48.3433928,168.24,168.18,1.47846154]
[1641388581971,92.7,168.27,168.18,10.79846154]
[1641388582369,92.7,168.27,168.19,20.59471253]
[1641388582572,46.1472,168.34,168.2,8.56]
[1641388582573,138.8472,168.34,168.2,8.56]
[1641388582770,77.6174,168.33,168.2,10.03846154]
[1641388583072,30.49420967,168.32,168.21,1.47846154]
[1641388583272,30.49420967,168.32,168.22,8.56]
[1641388583570,24.1495,168.31,168.22,9.32]
[1641388583870,24.1495,168.31,168.23,1.47846154]
[1641388584069,24.1495,168.31,168.23,1.73846154]
[1641388584270,24.1495,168.31,168.23,2.23846154]
[1641388584472,24.1495,168.31,168.24,8.56]
[1641388584671,24.1495,168.31,168.24,10.03846154]
[1641388584870,24.1495,168.31,168.24,10.79846154]
[1641388585070,24.1495,168.31,168.25,1.47846154]
[1641388585570,24.1495,168.31,168.25,2.23846154]
[1641388585973,24.1495,168.31,168.26,1.47846154]
[1641388586371,24.1495,168.31,168.26,2.23846154]
[1641388587172,21.6495,168.31,168.26,2.23846154]
[1641388589274,21.6495,168.31,168.27,1.47846154]
[1641388589474,21.6495,168.31,168.27,2.23846154]
[1641388591875,21.6495,168.31,168.27,0.5]
[1641388592276,21.6495,168.31,168.22,0.5]
[1641388592475,21.6495,168.31,168.2,1.97846154]
[1641388592676,21.6495,168.31,168.2,1.47846154]
[1641388592880,21.6495,168.31,168.22,1.47846154]
[1641388593278,21.6495,168.31,168.22,1.97846154]
[1641388594482,21.6495,168.31,168.22,2.23846154]
[1641388594684,21.6495,168.31,168.23,8.56]
[1641388594882,21.6495,168.31,168.23,9.06]
[1641388595084,21.6495,168.31,168.24,1.47846154]
[1641388595489,21.6495,168.31,168.24,2.23846154]
[1641388595889,21.6495,168.31,168.25,1.47846154]
[1641388596086,21.6495,168.31,168.25,1.73846154]
[1641388596287,21.6495,168.31,168.25,2.23846154]
[1641388596712,21.6495,168.31,168.26,1.47846154]
[1641388596911,21.6495,168.31,168.26,1.97846154]
[1641388597112,21.6495,168.31,168.26,2.23846154]
[1641388599815,21.6495,168.31,168.27,1.47846154]
[1641388600014,21.6495,168.31,168.27,1.73846154]
[1641388600214,21.6495,168.31,168.27,2.23846154]
[1641388602816,21.6495,168.31,168.28,1.47846154]
[1641388603116,21.6495,168.31,168.28,1.73846154]
[1641388603321,21.6495,168.31,168.28,2.23846154]
[1641388604318,3.03219997,168.3,168.28,2.23846154]
[1641388604720,40.0,168.29,168.28,2.23846154]
[1641388605421,40.0,168.29,168.28,0.76]
[1641388605822,43.03219997,168.29,168.25,11.14696154]
[1641388606020,40.0,168.29,168.25,11.14696154]
[1641388606221,40.0,168.29,168.26,1.47846154]
[1641388606423,40.0,168.29,168.26,1.97846154]
[1641388606621,40.0,168.29,168.26,2.23846154]
[1641388606820,40.0,168.29,168.27,1.47846154]
[1641388607021,40.0,168.29,168.27,1.73846154]
[1641388607224,40.0,168.29,168.27,2.23846154]
[1641388609921,30.49420967,168.32,168.27,2.23846154]
[1641388610122,30.49420967,168.32,168.27,1.97846154]
[1641388610322,2.63739888,168.32,168.27,1.97846154]
[1641388610523,2.63739888,168.32,168.28,1.47846154]
[1641388610724,100.8267,168.33,168.28,1.47846154]
[1641388610927,100.8267,168.33,168.28,1.97846154]
[1641388611527,100.8267,168.33,168.28,2.23846154]
[1641388612133,100.8267,168.33,168.29,8.56]
[1641388612434,100.8267,168.33,168.29,9.06]
[1641388612632,100.8267,168.33,168.29,10.79846154]
[1641388612833,100.8267,168.33,168.3,1.47846154]
[1641388613033,100.8267,168.33,168.31,8.56]
[1641388613234,116.0911,168.34,168.31,8.56]
[1641388613436,116.0911,168.34,168.31,9.32]
[1641388613834,92.7,168.34,168.31,9.32]
[1641388614236,95.60857988,168.37,168.31,9.32]
[1641388615737,92.7,168.37,168.32,1.47846154]
[1641388615941,92.7,168.37,168.33,8.56]
[1641388616137,90.326,168.37,168.33,8.56]
[1641388616338,85.696,168.37,168.34,1.47846154]
[1641388616539,92.7,168.4,168.35,8.56]
[1641388616739,92.7,168.4,168.36,8.9027]
[1641388616943,92.7,168.4,168.37,8.56]
[1641388617139,6.06439994,168.39,168.37,8.56]
[1641388617338,6.06439994,168.39,168.37,9.32]
[1641388619648,6.06439994,168.39,168.37,10.79846154]
[1641388619849,6.06439994,168.39,168.37,19.70066154]
[1641388621552,92.7,168.4,168.37,10.79846154]
[1641388621752,2.75200218,168.39,168.37,10.03846154]
[1641388621953,2.75200218,168.39,168.37,8.56]
[1641388622154,2.75200218,168.39,168.34,1.47846154]
[1641388622554,2.75200218,168.39,168.34,10.03846154]
[1641388623165,2.75200218,168.39,168.34,10.29846154]
[1641388623364,2.75200218,168.39,168.35,1.47846154]
[1641388623969,2.75200218,168.39,168.35,2.23846154]
[1641388625868,92.7,168.4,168.35,2.23846154]
[1641388631879,92.7,168.4,168.35,1.97846154]
[1641388632082,92.7,168.4,168.33,1.47846154]
[1641388632481,92.7,168.4,168.3,8.56]
[1641388632687,92.7,168.4,168.27,8.56]
[1641388632883,24.2536,168.39,168.27,8.56]
[1641388633085,2.84842901,168.38,168.27,8.56]
[1641388633484,2.84842901,168.38,168.27,9.06]
[1641388634088,2.84842901,168.38,168.27,9.32]
[1641388634887,2.84842901,168.38,168.27,9.06]
[1641388636087,2.84842901,168.38,168.27,9.32]
[1641388636492,2.84842901,168.38,168.27,9.06]
[1641388637989,2.84842901,168.38,168.27,9.32]
[1641388640896,2.84842901,168.38,168.27,9.06]
[1641388642319,2.84842901,168.38,168.27,9.32]
[1641388643520,2.84842901,168.38,168.27,19.13561549]
[1641388643921,24.2536,168.39,168.27,19.13561549]
[1641388644523,116.9536,168.39,168.27,19.13561549]
[1641388646923,116.9536,168.39,168.27,24.13587856]
[1641388648331,116.9536,168.39,168.27,23.87587856]
[1641388648732,116.9536,168.39,168.27,18.87561549]
[1641388649932,116.9536,168.39,168.27,24.93561549]
[1641388651935,2.46671951,168.38,168.27,19.13561549]
[1641388654438,2.46671951,168.38,168.28,1.47846154]
[1641388654639,2.46671951,168.38,168.29,8.56]
[1641388654841,2.46671951,168.38,168.29,9.06]
[1641388655039,2.46671951,168.38,168.3,1.47846154]
[1641388655339,2.46671951,168.38,168.31,8.56]
[1641388655539,2.46671951,168.38,168.31,8.82]
[1641388655740,2.46671951,168.38,168.31,9.32]
[1641388661344,2.46671951,168.38,168.31,16.346]
[1641388662546,116.9536,168.39,168.31,16.346]
[1641388663144,116.9536,168.39,168.32,1.47846154]
[1641388663345,116.9536,168.39,168.33,8.56]
[1641388663545,116.9536,168.39,168.33,8.82]
[1641388663745,116.9536,168.39,168.34,1.47846154]
[1641388663946,116.9536,168.39,168.35,8.56]
[1641388664146,92.7,168.39,168.35,13.731]
[1641388664346,92.7,168.39,168.35,15.70946154]
[1641388664547,92.7,168.39,168.35,15.96946154]
[1641388666150,92.7,168.39,168.35,25.78507703]
[1641388667250,90.6665,168.39,168.35,25.78507703]
[1641388667851,90.6665,168.39,168.35,15.96946154]
[1641388668051,92.7,168.43,168.35,10.79846154]
[1641388668954,94.98550633,168.43,168.35,10.79846154]
[1641388669853,2.28550633,168.43,168.35,10.79846154]
[1641388670256,25.63300633,168.43,168.35,10.79846154]
[1641388671057,25.63300633,168.43,168.35,16.33946154]
[1641388671356,25.63300633,168.43,168.35,26.15507703]
[1641388672156,2.28550633,168.43,168.35,26.15507703]
[1641388673257,2.28550633,168.43,168.35,35.18487703]
[1641388675464,2.28550633,168.43,168.35,34.92487703]
[1641388676864,2.28550633,168.43,168.35,35.18487703]
[1641388677264,102.1367,168.45,168.35,35.18487703]
[1641388678071,78.6905,168.45,168.35,35.18487703]
[1641388678269,81.42291274,168.45,168.35,35.18487703]
[1641388678870,92.7,168.49,168.35,142.16487703]
[1641388679270,92.7,168.49,168.37,106.98]
[1641388679470,92.7,168.49,168.38,8.56]
[1641388679669,92.7,168.49,168.38,19.85407703]
[1641388679873,92.7,168.49,168.39,29.52107166]
[1641388680072,92.7,168.49,168.4,8.56]
[1641388680274,92.7,168.49,168.4,19.85407703]
[1641388680473,92.7,168.49,168.4,20.61407703]
[1641388680675,92.7,168.49,168.41,1.47846154]
[1641388680876,92.7,168.49,168.42,8.56]
[1641388681076,92.7,168.49,168.42,8.82]
[1641388681275,92.7,168.49,168.43,1.47846154]
[1641388681476,92.7,168.49,168.44,8.56]
[1641388681876,92.7,168.49,168.44,9.32]
[1641388682078,92.7,168.49,168.45,1.47846154]
[1641388682275,92.7,168.49,168.46,8.56]
[1641388682476,3.03219997,168.48,168.46,32.94358864]
[1641388682700,92.7,168.49,168.47,1.47846154]
[1641388682895,92.7,168.49,168.48,8.56]
[1641388683297,92.7,168.49,168.48,10.79846154]
[1641388683497,92.7,168.49,168.48,17.30146154]
[1641388684297,92.7,168.49,168.48,17.04146154]
[1641388684898,98.76439994,168.49,168.48,10.53846154]
[1641388685098,95.73219997,168.49,168.48,10.53846154]
[1641388685499,92.7,168.49,168.48,10.79846154]
[1641388688405,91.51,168.49,168.48,10.79846154]
[1641388688705,0.53531169,168.52,168.48,10.79846154]
[1641388688903,0.53531169,168.52,168.48,18.10646154]
[1641388690502,0.53531169,168.52,168.48,10.79846154]
[1641388692105,0.53531169,168.52,168.48,10.53846154]
[1641388695013,0.53531169,168.52,168.48,10.79846154]
[1641388696617,0.53531169,168.52,168.48,27.53107703]
[1641388697418,92.7,168.55,168.5,56.0]
[1641388697618,31.25755508,168.55,168.51,115.54]
[1641388697817,21.13755508,168.55,168.53,106.98]
[1641388698019,1.66407424,168.68,168.54,38.56]